bitfinex-derivatives/quotes_SOLF0:USTF0_20260204
["timestamp","ask_amount","ask_price","bid_price","bid_amount"]
[1770165516215,10.02856521,98.409,98.345,21.60666282]
[1770165517824,9.1606,98.389,98.345,21.60666282]
[1770165518321,9.1598,98.398,98.347,21.60666282]
[1770165519222,9.1598,98.398,98.349,21.60666282]
[1770165519516,10.50041571,98.401,98.349,21.60666282]
[1770165519722,10.59526159,98.399,98.349,21.60666282]
[1770165520818,9.1621,98.373,98.317,21.60666282]
[1770165521913,9.1613,98.382,98.322,21.60666282]
[1770165522113,9.1613,98.382,98.324,21.60666282]
[1770165522314,10.59526159,98.399,98.324,21.60666282]
[1770165522622,10.59526159,98.399,98.326,21.60666282]
[1770165522822,9.1612,98.383,98.327,21.60666282]
[1770165523225,10.59526159,98.399,98.327,21.60666282]
[1770165523422,10.59526159,98.399,98.342,9.1649]
[1770165523423,19.75496159,98.399,98.342,9.1649]
[1770165523625,10.59526159,98.399,98.343,21.60666282]
[1770165524426,9.1613,98.382,98.343,21.60666282]
[1770165524629,9.1613,98.382,98.345,21.60666282]
[1770165524823,10.59526159,98.399,98.345,21.60666282]
[1770165525025,10.59526159,98.399,98.347,21.60666282]
[1770165525729,9.1604,98.391,98.347,21.60666282]
[1770165526430,9.1604,98.391,98.348,405.68]
[1770165526831,9.1604,98.391,98.349,21.60666282]
[1770165528724,9.1604,98.391,98.35,405.68]
[1770165530235,9.1603,98.392,98.351,405.68]
[1770165530434,3.31047932,98.39,98.351,405.68]
[1770165532730,13.81971657,98.39,98.349,21.60666282]
[1770165533032,3.31047932,98.37,98.339,22.21112816]
[1770165533236,9.1608,98.388,98.34,9.1651]
[1770165533433,9.1608,98.388,98.341,22.21112816]
[1770165534338,9.1608,98.388,98.343,22.21112816]
[1770165537737,9.1608,98.388,98.345,21.15912649]
[1770165539738,9.1608,98.388,98.347,21.15912649]
[1770165541442,9.1608,98.388,98.349,21.15912649]
[1770165542442,9.1608,98.388,98.351,21.15912649]
[1770165543644,3.31047932,98.39,98.35,334.34]
[1770165543645,3.31047932,98.44,98.364,21.15912649]
[1770165543846,3.31047932,98.44,98.37,24.46960581]
[1770165544047,3.31047932,98.44,98.393,21.15912649]
[1770165544246,3.31047932,98.44,98.395,21.15912649]
[1770165544744,9.156,98.439,98.395,21.15912649]
[1770165545241,9.1557,98.442,98.395,21.15912649]
[1770165545445,9.1557,98.442,98.397,21.15912649]
[1770165545949,21.63304262,98.446,98.399,21.15912649]
[1770165546552,3.31047932,98.44,98.399,21.15912649]
[1770165547047,3.31047932,98.45,98.399,21.15912649]
[1770165547945,12.46357932,98.47,98.401,21.15912649]
[1770165548147,12.46357932,98.47,98.403,21.15912649]
[1770165548345,3.31047932,98.47,98.403,21.15912649]
[1770165549852,3.31047932,98.47,98.422,21.15912649]
[1770165550048,21.63304262,98.478,98.422,21.15912649]
[1770165550647,21.63304262,98.478,98.424,21.15912649]
[1770165551753,21.63304262,98.478,98.426,21.15912649]
[1770165552347,30.78534262,98.478,98.426,21.15912649]
[1770165552545,3.31047932,98.46,98.426,21.15912649]
[1770165552949,3.31047932,98.47,98.426,21.15912649]
[1770165553151,21.63304262,98.478,98.426,21.15912649]
[1770165554054,3.31047932,98.48,98.426,21.15912649]
[1770165554354,24.94352194,98.49,98.427,21.15912649]
[1770165554948,21.63304262,98.488,98.429,21.15912649]
[1770165555858,3.31047932,98.49,98.433,21.15912649]
[1770165556055,9.1504,98.499,98.433,21.15912649]
[1770165556448,21.63304262,98.498,98.433,21.15912649]
[1770165556754,3.31047932,98.49,98.433,21.15912649]
[1770165557760,3.31047932,98.49,98.436,21.15912649]
[1770165558457,21.63304262,98.498,98.436,21.15912649]
[1770165558948,3.31047932,98.48,98.441,21.15912649]
[1770165559148,3.31047932,98.48,98.411,21.15912649]
[1770165559149,3.31047932,98.47,98.411,21.15912649]
[1770165559362,3.31047932,98.47,98.413,21.15912649]
[1770165559549,9.1525,98.477,98.413,21.15912649]
[1770165559750,24.94352194,98.48,98.413,21.15912649]
[1770165559962,21.63304262,98.48,98.421,21.15912649]
[1770165560156,3.31047932,98.49,98.435,21.15912649]
[1770165560460,3.31047932,98.51,98.441,21.15912649]
[1770165560661,3.31047932,98.51,98.451,21.36452501]
[1770165561757,3.31047932,98.51,98.455,9.1544]
[1770165561952,3.31047932,98.51,98.456,21.36452501]
[1770165562154,25.57267393,98.51,98.456,21.36452501]
[1770165563658,25.26954106,98.5,98.456,21.36452501]
[1770165563859,3.31047932,98.48,98.441,21.36452501]
[1770165568566,9.1513,98.489,98.441,21.36452501]
[1770165568965,25.26954106,98.49,98.441,21.36452501]
[1770165569666,25.26954106,98.49,98.442,9.1556]
[1770165570566,3.31047932,98.51,98.446,21.36452501]
[1770165571262,142.261,98.554,98.438,405.34]
[1770165571263,3.31047932,98.48,98.438,405.34]
[1770165571459,3.31047932,98.47,98.431,21.36452501]
[1770165571866,3.31047932,98.46,98.431,21.36452501]
[1770165572065,24.68663341,98.46,98.415,21.36452501]
[1770165572276,3.31047932,98.43,98.381,21.36452501]
[1770165572470,3.31047932,98.42,98.381,21.36452501]
[1770165572665,21.37615409,98.418,98.364,21.36452501]
[1770165572865,21.37615409,98.418,98.348,21.36452501]
[1770165572866,3.31047932,98.39,98.348,21.36452501]
[1770165573175,3.31047932,98.41,98.35,21.36452501]
[1770165573369,21.37615409,98.418,98.357,21.36452501]
[1770165573575,142.3781,98.473,98.374,21.36452501]
[1770165573576,3.31047932,98.43,98.374,21.36452501]
[1770165573872,3.31047932,98.43,98.375,21.36452501]
[1770165574072,3.31047932,98.44,98.39,21.36452501]
[1770165574474,3.31047932,98.45,98.39,21.36452501]
[1770165574779,3.31047932,98.45,98.386,405.36]
[1770165574780,3.31047932,98.43,98.392,21.36452501]
[1770165575369,3.31047932,98.42,98.383,405.38]
[1770165575573,3.31047932,98.43,98.383,405.38]
[1770165575877,3.31047932,98.44,98.384,21.36452501]
[1770165576075,21.45181367,98.447,98.386,21.36452501]
[1770165576269,21.45181367,98.447,98.388,21.36452501]
[1770165576474,3.31047932,98.46,98.397,21.36452501]
[1770165576673,3.31047932,98.46,98.401,21.36452501]
[1770165576873,3.31047932,98.46,98.405,21.36452501]
[1770165577378,3.31047932,98.47,98.405,21.36452501]
[1770165577575,3.31047932,98.46,98.405,21.36452501]
[1770165577776,3.31047932,98.46,98.414,21.36452501]
[1770165578278,142.3407,98.499,98.414,21.36452501]
[1770165578279,3.31047932,98.45,98.414,21.36452501]
[1770165578476,3.30566401,98.45,98.414,21.36452501]
[1770165578875,3.30566401,98.44,98.404,9.1592]
[1770165579078,3.30566401,98.45,98.404,9.1592]
[1770165579280,3.30566401,98.45,98.405,21.36452501]
[1770165579480,9.1526,98.475,98.408,21.36452501]
[1770165579481,3.30566401,98.46,98.408,21.36452501]
[1770165580477,20.86959736,98.472,98.408,21.36452501]
[1770165580878,20.86959736,98.472,98.41,21.36452501]
[1770165581675,20.86959736,98.472,98.411,9.1585]
[1770165581875,20.74909349,98.492,98.412,21.36452501]
[1770165582078,20.74909349,98.492,98.419,21.36452501]
[1770165582274,20.74909349,98.492,98.42,405.42]
[1770165582478,20.74909349,98.492,98.421,21.36452501]
[1770165583080,20.74909349,98.492,98.441,21.36452501]
[1770165584178,20.74909349,98.492,98.442,21.36452501]
[1770165584383,9.1497,98.506,98.442,21.36452501]
[1770165584879,20.61075676,98.509,98.423,142.449]
[1770165584880,20.61075676,98.509,98.445,21.36452501]
[1770165585679,8.26410628,98.53,98.439,405.42]
[1770165585680,20.52561681,98.527,98.457,21.36452501]
[1770165585880,20.52561681,98.527,98.461,21.36452501]
[1770165586789,20.52561681,98.527,98.478,9.1523]
[1770165587289,20.52784542,98.544,98.479,21.36452501]
[1770165587485,20.52784542,98.544,98.481,21.36452501]
[1770165588782,9.1463,98.543,98.481,21.36452501]
[1770165589190,29.55421892,98.543,98.481,21.36452501]
[1770165589389,20.40791892,98.538,98.481,21.36452501]
[1770165590482,8.26410628,98.55,98.481,21.36452501]
[1770165590885,20.37879372,98.555,98.495,20.76448752]
[1770165592289,20.37879372,98.555,98.507,20.76448752]
[1770165592682,20.52043497,98.572,98.507,20.76448752]
[1770165592887,20.52043497,98.572,98.519,20.76448752]
[1770165593585,20.60104538,98.596,98.533,20.76448752]
[1770165594087,20.60104538,98.579,98.509,20.76448752]
[1770165594389,20.60104538,98.579,98.508,405.3]
[1770165594390,20.60104538,98.578,98.512,20.76448752]
[1770165595688,20.9600277,98.575,98.512,20.76448752]
[1770165596483,20.9600277,98.573,98.517,20.96053524]
[1770165596689,20.96204226,98.599,98.517,20.96053524]
[1770165597290,20.96204226,98.596,98.531,9.1474]
[1770165597490,20.96204226,98.596,98.532,20.96053524]
[1770165598096,9.1416,98.594,98.534,9.147]
[1770165598394,21.14188042,98.593,98.534,9.147]
[1770165599097,21.14188042,98.593,98.54,20.96053524]
[1770165599391,21.14188042,98.593,98.54,30.10703524]
[1770165599591,8.26410628,98.61,98.541,20.96053524]
[1770165599796,21.52371834,98.644,98.572,20.96053524]
[1770165599995,21.52371834,98.623,98.554,20.96053524]
[1770165600192,21.52371834,98.609,98.554,20.96053524]
[1770165600395,21.52371834,98.609,98.534,20.96053524]
[1770165600696,21.52371834,98.609,98.539,20.96053524]
[1770165600890,21.52371834,98.609,98.497,142.3412]
[1770165601087,21.52613847,98.585,98.522,20.96053524]
[1770165601593,21.52613847,98.582,98.522,20.96053524]
[1770165601896,21.52613847,98.582,98.513,9.149]
[1770165601897,21.74281967,98.569,98.505,20.96053524]
[1770165602394,9.145,98.558,98.505,20.96053524]
[1770165602589,21.74281967,98.569,98.505,20.96053524]
[1770165603793,8.26410628,98.57,98.505,20.96053524]
[1770165603794,22.16580036,98.567,98.505,20.96053524]
[1770165604296,9.1482,98.523,98.463,20.96053524]
[1770165604488,142.2691,98.548,98.431,142.4366]
[1770165604489,8.26410628,98.51,98.436,380.82]
[1770165604797,31.31740943,98.509,98.443,20.96053524]
[1770165605188,142.3004,98.527,98.424,20.96053524]
[1770165605189,142.3564,98.488,98.424,20.96053524]
[1770165605394,22.16800943,98.487,98.424,20.96053524]
[1770165605594,9.1518,98.484,98.424,20.96053524]
[1770165605791,21.85262538,98.483,98.424,20.96053524]
[1770165609594,21.18473367,98.511,98.437,9.1561]
[1770165609899,8.26410628,98.49,98.438,20.96053524]
[1770165610499,8.26410628,98.49,98.418,382.24]
[1770165610500,21.18473367,98.489,98.418,382.24]
[1770165610702,239.8,98.515,98.397,20.96053524]
[1770165610703,21.18676212,98.464,98.397,20.96053524]
[1770165610908,21.18676212,98.449,98.377,20.96053524]
[1770165611403,21.18676212,98.468,98.392,20.96053524]
[1770165611906,8.26410628,98.45,98.392,20.96053524]
[1770165614207,8.26410628,98.47,98.394,20.96053524]
[1770165614409,29.03956514,98.47,98.394,20.96053524]
[1770165615808,29.03956514,98.47,98.398,20.96053524]
[1770165616212,29.86905058,98.467,98.398,20.96053524]
[1770165616907,8.26410628,98.47,98.4,20.96053524]
[1770165617104,9.1523,98.479,98.4,20.96053524]
[1770165617506,20.71719658,98.478,98.4,20.96053524]
[1770165617704,8.26410628,98.47,98.406,20.96053524]
[1770165617914,28.78911014,98.47,98.406,20.96053524]
[1770165618112,20.52500386,98.469,98.397,405.3]
[1770165618514,20.52500386,98.469,98.397,426.26053524]
[1770165618812,20.52500386,98.469,98.398,20.96053524]
[1770165619010,9.1533,98.468,98.399,9.1596]
[1770165619212,9.1533,98.468,98.4,20.96053524]
[1770165619417,20.52663953,98.467,98.4,20.96053524]
[1770165619613,29.74631221,98.466,98.403,9.1592]
[1770165620209,29.74631221,98.466,98.397,405.3]
[1770165620210,20.59291221,98.486,98.41,20.96053524]
[1770165620416,20.59291221,98.486,98.416,20.96053524]
[1770165620909,9.1518,98.484,98.416,20.96053524]
[1770165621116,20.60409337,98.483,98.416,20.96053524]
[1770165621913,20.69676142,98.503,98.434,20.55728939]
[1770165622121,20.69676142,98.503,98.422,142.4507]
[1770165622122,20.69676142,98.521,98.45,20.55728939]
[1770165622618,20.69817531,98.518,98.455,9.1544]
[1770165622916,20.69817531,98.509,98.45,20.55728939]
[1770165623823,20.5349464,98.502,98.45,20.55728939]
[1770165625426,20.53636498,98.501,98.45,20.55728939]
[1770165626617,20.65981968,98.518,98.452,20.55728939]
[1770165627227,9.1478,98.517,98.452,20.55728939]
[1770165627424,20.65981968,98.518,98.452,20.55728939]
[1770165627626,239.06,98.557,98.457,20.55728939]
[1770165627627,20.66128762,98.536,98.457,20.55728939]
[1770165627822,20.66128762,98.536,98.456,142.3867]
[1770165627823,20.66128762,98.536,98.476,20.55728939]
[1770165628017,20.65061517,98.529,98.446,20.55728939]
[1770165628628,20.65061517,98.529,98.462,20.55728939]
[1770165629228,8.26410628,98.53,98.462,20.55728939]
[1770165629229,20.65233626,98.525,98.462,20.55728939]
[1770165630319,20.59911822,98.522,98.462,20.55728939]
[1770165631929,9.1475,98.521,98.463,9.1527]
[1770165632737,29.90587957,98.521,98.462,20.55728939]
[1770165633122,9.1485,98.51,98.462,20.55728939]
[1770165633521,20.75837957,98.509,98.445,20.55728939]
[1770165633734,9.1493,98.501,98.445,20.55728939]
[1770165634137,9.1493,98.501,98.396,142.4736]
[1770165634138,9.1516,98.476,98.427,20.55728939]
[1770165634435,20.75817039,98.478,98.427,20.55728939]
[1770165635029,8.26410628,98.51,98.427,20.55728939]
[1770165635329,20.75953589,98.509,98.427,20.55728939]
[1770165636735,9.1487,98.508,98.441,20.55728939]
[1770165638837,9.1487,98.508,98.446,20.55728939]
[1770165639231,9.1499,98.494,98.446,20.55728939]
[1770165640732,142.3056,98.513,98.426,20.55728939]
[1770165640733,20.8726182,98.483,98.426,20.55728939]
[1770165641031,20.8726182,98.477,98.409,20.55728939]
[1770165641432,9.1527,98.464,98.409,20.55728939]
[1770165641937,9.1518,98.474,98.411,20.55728939]
[1770165642334,21.0409418,98.473,98.411,20.55728939]
[1770165643834,9.1524,98.468,98.413,20.55728939]
[1770165645139,9.1532,98.459,98.413,20.55728939]
[1770165645838,9.1523,98.469,98.413,20.55728939]
[1770165647231,17.40831327,98.48,98.413,20.55728939]
[1770165647438,21.39491431,98.505,98.421,20.55728939]
[1770165647735,9.1504,98.489,98.425,20.55728939]
[1770165647937,21.50581328,98.499,98.425,20.55728939]
[1770165648337,21.50581328,98.479,98.414,405.36]
[1770165649740,9.1531,98.46,98.408,20.55728939]
[1770165650936,9.1522,98.47,98.41,21.96125705]
[1770165652745,9.1522,98.47,98.412,21.96125705]
[1770165657044,9.1522,98.47,98.417,20.47324364]
[1770165658445,12.45716277,98.47,98.417,20.47324364]
[1770165658945,9.1533,98.458,98.417,20.47324364]
[1770165659146,3.30496277,98.46,98.417,20.47324364]
[1770165659847,3.30496277,98.47,98.417,20.47324364]
[1770165660149,3.30496277,98.47,98.42,20.47324364]
[1770165660642,20.465868,98.499,98.431,20.47324364]
[1770165661047,3.30496277,98.5,98.431,20.47324364]
[1770165661243,3.30496277,98.5,98.441,20.47324364]
[1770165661642,9.1504,98.489,98.441,20.47324364]
[1770165661845,3.30496277,98.47,98.424,20.47324364]
[1770165662743,9.1513,98.479,98.428,20.47324364]
[1770165662938,3.30496277,98.51,98.443,142.4057]
[1770165663139,3.30496277,98.51,98.425,142.4308]
[1770165663140,9.46588032,98.544,98.481,20.47324364]
[1770165663345,9.1453,98.544,98.491,20.47324364]
[1770165663544,3.30496277,98.55,98.491,20.47324364]
[1770165664442,20.465868,98.551,98.493,9.1499]
[1770165664648,20.465868,98.567,98.494,20.47324364]
[1770165665048,238.96,98.602,98.494,20.47324364]
[1770165665049,20.465868,98.549,98.494,20.47324364]
[1770165665553,9.1463,98.534,98.472,20.47324364]
[1770165669053,9.1463,98.534,98.475,20.47324364]
[1770165669248,20.465868,98.545,98.475,20.47324364]
[1770165670356,9.1457,98.54,98.475,20.47324364]
[1770165670651,9.1473,98.532,98.475,20.47324364]
[1770165670853,20.465868,98.523,98.442,20.47324364]
[1770165671055,142.3036,98.524,98.416,20.47324364]
[1770165671056,20.465868,98.503,98.416,20.47324364]
[1770165671257,8.24876289,98.49,98.416,20.47324364]
[1770165671554,8.24876289,98.49,98.41,405.28]
[1770165671555,8.24876289,98.51,98.426,20.47324364]
[1770165672150,20.465868,98.496,98.416,20.47324364]
[1770165672750,8.24876289,98.49,98.416,20.47324364]
[1770165673362,9.1521,98.48,98.427,20.47324364]
[1770165673560,20.465868,98.485,98.427,20.47324364]
[1770165674059,17.39996289,98.49,98.427,20.47324364]
[1770165674358,20.465868,98.521,98.436,20.47324364]
[1770165675654,9.1496,98.508,98.439,9.1559]
[1770165675860,20.465868,98.514,98.44,20.47324364]
[1770165676355,9.1496,98.508,98.442,20.47324364]
[1770165676562,8.24876289,98.53,98.442,20.47324364]
[1770165676868,9.1495,98.509,98.453,20.47324364]
[1770165677159,20.465868,98.527,98.453,20.47324364]
[1770165677560,9.1494,98.51,98.453,20.47324364]
[1770165678460,9.1502,98.501,98.453,20.47324364]
[1770165679061,9.1493,98.511,98.453,20.47324364]
[1770165683063,9.1493,98.511,98.456,22.40244842]
[1770165683969,22.6437687,98.54,98.458,22.40244842]
[1770165685070,22.6437687,98.519,98.458,22.40244842]
[1770165685871,22.6437687,98.519,98.461,22.40244842]
[1770165686270,22.6437687,98.536,98.461,22.40244842]
[1770165687562,22.6437687,98.536,98.481,22.40244842]
[1770165687759,9.1467,98.539,98.481,22.40244842]
[1770165688162,22.6437687,98.555,98.471,314.58]
[1770165688163,9.1458,98.548,98.483,22.40244842]
[1770165688771,9.1458,98.548,98.49,9.1511]
[1770165688971,22.6437687,98.545,98.483,22.40244842]
[1770165689367,9.146,98.546,98.486,22.40244842]
[1770165690566,9.145,98.557,98.499,9.1503]
[1770165690771,8.24876289,98.59,98.502,22.40244842]
[1770165691078,22.6437687,98.597,98.523,22.40244842]
[1770165691374,22.6437687,98.597,98.532,22.40244842]
[1770165691565,142.201,98.595,98.532,22.40244842]
[1770165691765,22.6437687,98.573,98.509,22.40244842]
[1770165692471,30.89253159,98.59,98.511,22.40244842]
[1770165692676,22.6437687,98.589,98.511,22.40244842]
[1770165693176,22.6437687,98.589,98.523,22.40244842]
[1770165693673,9.1415,98.595,98.523,22.40244842]
[1770165694675,9.1415,98.595,98.54,9.1465]
[1770165694875,9.1415,98.595,98.541,22.40244842]
[1770165697678,9.1429,98.58,98.524,22.40244842]
[1770165699179,22.6437687,98.594,98.516,9.1487]
[1770165699180,9.142,98.59,98.526,22.40244842]
[1770165699889,9.142,98.59,98.53,22.40244842]
[1770165700489,12.43865092,98.59,98.53,25.69909934]
[1770165701185,12.43765092,98.6,98.541,22.40244842]
[1770165702586,3.29665092,98.58,98.541,22.40244842]
[1770165703387,9.1418,98.591,98.541,22.40244842]
[1770165703591,3.29665092,98.58,98.541,22.40244842]
[1770165705292,3.29665092,98.59,98.543,22.40244842]
[1770165705494,12.43765092,98.6,98.543,22.40244842]
[1770165706587,3.29665092,98.6,98.547,22.40244842]
[1770165706792,3.29665092,98.6,98.526,404.98]
[1770165706793,3.29665092,98.61,98.551,22.40244842]
[1770165707093,3.29665092,98.62,98.551,22.40244842]
[1770165707290,3.29665092,98.61,98.551,22.40244842]
[1770165707683,3.29665092,98.61,98.561,9.1446]
[1770165707884,3.29665092,98.61,98.562,22.40244842]
[1770165708091,3.29665092,98.6,98.562,22.40244842]
[1770165708487,22.6437687,98.627,98.562,22.40244842]
[1770165708685,9.14,98.611,98.562,22.40244842]
[1770165711293,21.76904499,98.591,98.541,20.86655525]
[1770165711694,9.1434,98.574,98.541,20.86655525]
[1770165712593,9.1426,98.583,98.541,20.86655525]
[1770165713700,9.1436,98.573,98.513,20.86655525]
[1770165714098,9.1436,98.573,98.524,20.86655525]
[1770165715694,9.1436,98.573,98.525,9.1479]
[1770165715893,21.76904499,98.589,98.526,21.93970959]
[1770165715894,9.1425,98.584,98.526,21.93970959]
[1770165716591,9.1415,98.595,98.538,21.93970959]
[1770165717394,9.1415,98.595,98.543,21.93970959]
[1770165718798,9.1422,98.587,98.543,21.93970959]
[1770165719498,8.23910194,98.61,98.543,21.93970959]
[1770165719499,9.143,98.578,98.543,21.93970959]
[1770165720494,30.61345858,98.61,98.543,21.93970959]
[1770165720691,22.37435664,98.61,98.543,21.93970959]
[1770165721797,9.1412,98.598,98.545,31.08570959]
[1770165721998,9.1412,98.598,98.546,21.93970959]
[1770165723093,22.37435664,98.627,98.552,21.93970959]
[1770165724800,9.1395,98.616,98.564,21.93970959]
[1770165725706,9.1395,98.616,98.566,21.93970959]
[1770165727499,9.1402,98.608,98.566,21.93970959]
[1770165728199,9.1402,98.608,98.551,21.93970959]
[1770165728200,22.37435664,98.608,98.551,21.93970959]
[1770165728396,3.29610284,98.6,98.551,21.93970959]
[1770165729408,3.29610284,98.6,98.553,21.93970959]
[1770165729609,22.37435664,98.608,98.553,21.93970959]
[1770165730008,22.37435664,98.608,98.565,21.93970959]
[1770165731706,3.29610284,98.61,98.565,21.93970959]
[1770165732010,3.29610284,98.62,98.568,21.93970959]
[1770165732908,22.37435664,98.639,98.568,21.93970959]
[1770165733110,3.29610284,98.63,98.568,21.93970959]
[1770165733408,9.1383,98.629,98.575,21.93970959]
[1770165733608,3.29610284,98.63,98.575,21.93970959]
[1770165734808,3.29610284,98.63,98.581,21.93970959]
[1770165735813,3.29610284,98.63,98.561,142.2494]
[1770165735814,3.29610284,98.63,98.583,21.93970959]
[1770165736306,3.29610284,98.65,98.599,21.93970959]
[1770165736505,9.41426772,98.655,98.583,142.2174]
[1770165736506,9.41426772,98.679,98.614,21.93970959]
[1770165736808,3.29610284,98.69,98.631,21.93970959]
[1770165737411,22.37435664,98.691,98.631,21.93970959]
[1770165737612,3.29610284,98.7,98.641,21.93970959]
[1770165738109,3.29610284,98.71,98.659,21.93970959]
[1770165738614,22.37435664,98.735,98.674,31.07380959]
[1770165738909,22.37435664,98.735,98.674,21.93970959]
[1770165739414,9.1302,98.717,98.647,21.93970959]
[1770165739613,22.37435664,98.716,98.647,21.93970959]
[1770165740011,22.37435664,98.716,98.649,21.93970959]
[1770165740509,8.22072283,98.75,98.685,9.133]
[1770165740713,21.05227288,98.769,98.686,21.52612931]
[1770165740915,21.05227288,98.769,98.687,21.52612931]
[1770165741515,21.05227288,98.767,98.701,21.52612931]
[1770165741814,21.05227288,98.767,98.682,142.0742]
[1770165741815,21.05227288,98.767,98.711,21.52612931]
[1770165742816,9.1257,98.766,98.711,21.52612931]
[1770165743606,141.9345,98.781,98.711,21.52612931]
[1770165743607,9.1266,98.756,98.711,21.52612931]
[1770165743812,9.1266,98.756,98.71,8.22072283]
[1770165745216,21.05227288,98.765,98.71,8.22072283]
[1770165745917,21.05227288,98.761,98.694,21.52612931]
[1770165746708,9.127,98.752,98.694,21.52612931]
[1770165746917,21.05227288,98.751,98.694,21.52612931]
[1770165747615,141.9345,98.781,98.698,21.52612931]
[1770165747918,21.05227288,98.78,98.711,21.52612931]
[1770165748316,21.05227288,98.768,98.711,21.52612931]
[1770165748513,23.83175924,98.784,98.711,21.52612931]
[1770165748719,21.05227288,98.763,98.711,21.52612931]
[1770165748920,21.05227288,98.763,98.71,8.22072283]
[1770165749717,21.05227288,98.759,98.71,8.22072283]
[1770165750418,141.9401,98.777,98.71,8.22072283]
[1770165750419,21.05227288,98.757,98.71,8.22072283]
[1770165751423,21.05227288,98.754,98.694,21.52612931]
[1770165752722,9.1272,98.749,98.694,21.52612931]
[1770165753219,21.05227288,98.754,98.694,21.52612931]
[1770165753919,21.05227288,98.754,98.691,9.1325]
[1770165753920,21.05227288,98.754,98.696,21.52612931]
[1770165755820,21.05227288,98.751,98.696,21.52612931]
[1770165756022,21.05227288,98.751,98.685,212.44]
[1770165756213,21.05227288,98.751,98.681,21.52612931]
[1770165756415,9.1286,98.735,98.681,21.52612931]
[1770165757113,21.05227288,98.727,98.662,21.52612931]
[1770165758128,21.05227288,98.727,98.664,21.52612931]
[1770165758129,9.1302,98.717,98.664,21.52612931]
[1770165758521,9.1302,98.717,98.68,3.2870373]
[1770165758722,21.05227288,98.71,98.66,3.2870373]
[1770165759023,21.05227288,98.68,98.62,3.2870373]
[1770165759231,21.05227288,98.666,98.63,3.2870373]
[1770165759827,21.05227288,98.687,98.65,3.2870373]
[1770165760026,21.05227288,98.687,98.66,3.2870373]
[1770165760229,21.05227288,98.687,98.65,3.2870373]
[1770165760524,21.05227288,98.687,98.626,21.52612931]
[1770165761832,21.05227288,98.687,98.628,21.52612931]
[1770165762223,21.05227288,98.687,98.632,21.52612931]
[1770165762628,21.05227288,98.721,98.632,21.52612931]
[1770165762929,9.1309,98.71,98.642,21.52612931]
[1770165763527,21.05227288,98.709,98.642,21.52612931]
[1770165763727,21.05227288,98.706,98.642,21.52612931]
[1770165764628,21.05227288,98.704,98.642,21.52612931]
[1770165764825,21.05227288,98.698,98.625,21.52612931]
[1770165766726,21.05227288,98.69,98.626,9.1386]
[1770165766933,21.05227288,98.688,98.611,21.52612931]
[1770165767136,21.05227288,98.686,98.611,21.52612931]
[1770165767335,21.05227288,98.662,98.611,21.52612931]
[1770165768739,21.05227288,98.679,98.615,21.52612931]
[1770165769135,21.05227288,98.679,98.62,8.22351898]
[1770165769334,21.05227288,98.699,98.621,21.52612931]
[1770165769932,21.05227288,98.698,98.623,21.52612931]
[1770165770734,21.67547598,98.69,98.625,9.1386]
[1770165771537,21.67547598,98.69,98.625,30.85570216]
[1770165771727,21.67547598,98.687,98.638,9.1374]
[1770165773443,9.1317,98.7,98.643,30.85410216]
[1770165773640,21.67547598,98.704,98.643,21.71710216]
[1770165774835,21.67547598,98.704,98.653,9.136]
[1770165775530,21.36347867,98.719,98.657,20.56203209]
[1770165776134,21.36347867,98.719,98.661,20.56203209]
[1770165777737,21.36347867,98.719,98.65,404.48]
[1770165778043,9.1311,98.707,98.646,20.56203209]
[1770165778641,21.36347867,98.705,98.646,20.56203209]
[1770165779242,21.36347867,98.736,98.646,20.56203209]
[1770165779643,21.36347867,98.706,98.646,29.69873209]
[1770165780439,9.1313,98.705,98.65,9.1363]
[1770165781144,9.1313,98.705,98.625,404.48]
[1770165781145,21.36347867,98.695,98.623,20.56203209]
[1770165781450,21.36347867,98.691,98.623,20.56203209]
[1770165781944,9.1341,98.675,98.609,9.1401]
[1770165782137,9.1341,98.675,98.599,20.56203209]
[1770165782138,21.36347867,98.674,98.599,20.56203209]
[1770165782851,9.1352,98.662,98.6,20.56203209]
[1770165783652,9.1352,98.662,98.605,20.56203209]
[1770165784353,21.36347867,98.65,98.567,20.56203209]
[1770165784553,21.36347867,98.634,98.549,20.56203209]
[1770165784756,21.36347867,98.627,98.555,20.56203209]
[1770165786556,9.1387,98.625,98.559,20.56203209]
[1770165786753,21.36347867,98.654,98.58,8.22351898]
[1770165786957,21.36347867,98.654,98.595,20.56203209]
[1770165787855,21.36347867,98.654,98.596,9.1413]
[1770165789255,21.36347867,98.648,98.577,20.56203209]
[1770165789654,9.1375,98.638,98.577,20.56203209]
[1770165790654,21.36347867,98.648,98.581,20.56203209]
[1770165791860,21.36347867,98.648,98.58,8.22351898]
[1770165791861,21.36347867,98.648,98.585,20.56203209]
[1770165792656,21.36347867,98.648,98.59,9.1419]
[1770165792860,21.36347867,98.648,98.591,20.56203209]